[Event "Titled Tuesday Blitz March 28 Early 2023"]
[White "Kosakowski, Jakub"]
[Black "Dixit, Nikhil"]
[WhiteFideId "1185080"]
[BlackFideId "5059534"]
[WhiteElo "2488"]
[BlackElo "2207"]
[Result "0-1"]
[Round "10"]
[TimeControl "180+2"]
[Date "2023.03.28"]
[WhiteClock "0:00:02"]
[BlackClock "0:00:12"]

1. d4 {[%clk 0:02:54]}  Nf6 {[%clk 0:02:59]} 2. c4 {[%clk 0:02:54]}  g6 {[%clk 0:03:00]} 3. Nf3 {[%clk 0:02:54]}  Bg7 {[%clk 0:03:01]} 4. g3 {[%clk 0:02:54]}  O-O {[%clk 0:03:01]} 5. Bg2 {[%clk 0:02:55]}  d6 {[%clk 0:03:02]} 6. O-O {[%clk 0:02:55]}  Nbd7 {[%clk 0:02:54]} 7. Nc3 {[%clk 0:02:54]}  e5 {[%clk 0:02:54]} 8. e4 {[%clk 0:02:55]}  a6 {[%clk 0:02:54]} 9. Qc2 {[%clk 0:02:54]}  exd4 {[%clk 0:02:50]} 10. Nxd4 {[%clk 0:02:54]}  Re8 {[%clk 0:02:51]} 11. Rd1 {[%clk 0:02:55]}  Rb8 {[%clk 0:02:51]} 12. h3 {[%clk 0:02:55]}  c5 {[%clk 0:02:42]} 13. Nf3 {[%clk 0:02:53]}  b5 {[%clk 0:02:19]} 14. cxb5 {[%clk 0:02:24]}  axb5 {[%clk 0:02:17]} 15. Bf4 {[%clk 0:01:46]}  b4 {[%clk 0:01:31]} 16. Bxd6 {[%clk 0:01:44]}  bxc3 {[%clk 0:01:30]} 17. Bxb8 {[%clk 0:01:44]}  Qb6 {[%clk 0:01:26]} 18. Bf4 {[%clk 0:01:23]}  cxb2 {[%clk 0:01:24]} 19. Rab1 {[%clk 0:01:23]}  Nxe4 {[%clk 0:01:25]} 20. Re1 {[%clk 0:01:20]}  Bb7 {[%clk 0:01:15]} 21. Ng5 {[%clk 0:01:15]}  Nd6 {[%clk 0:00:59]} 22. Bxb7 {[%clk 0:01:05]}  Rxe1+ {[%clk 0:00:50]} 23. Rxe1 {[%clk 0:01:05]}  Nxb7 {[%clk 0:00:50]} 24. Qc4 {[%clk 0:00:49]}  Nd8 {[%clk 0:00:37]} 25. Qd3 {[%clk 0:00:23]}  h6 {[%clk 0:00:29]} 26. Nf3 {[%clk 0:00:13]}  Ne6 {[%clk 0:00:25]} 27. Bd2 {[%clk 0:00:04]}  c4 {[%clk 0:00:21]} 28. Qc2 {[%clk 0:00:03]}  Nd4 {[%clk 0:00:14]} 29. Nxd4 {[%clk 0:00:02]}  Bxd4 {[%clk 0:00:15]} 30. Kg2 {[%clk 0:00:02]}  c3 {[%clk 0:00:13]} 31. Bxh6 {[%clk 0:00:01]}  Qc6+ {[%clk 0:00:13]} 32. f3 {[%clk 0:00:01]}  Ne5 {[%clk 0:00:13]} 33. Bf4 {[%clk 0:00:02]}  Qxf3+ {[%clk 0:00:12]} 34. Kh2 {[%clk 0:00:02]}  Nd3 {[%clk 0:00:11]} 35. Re8+ {[%clk 0:00:02]}  Kg7 {[%clk 0:00:12]} 0-1


[Site "https://www.chess.com"]

[Event "Titled Tuesday Blitz March 28 Early 2023"]
[White "Dzhumagaliev, Yan"]
[Black "Sanchez Alvares, Kelvin Antonio"]
[WhiteFideId "24100110"]
[BlackFideId "3906680"]
[WhiteElo "2476"]
[BlackElo "2217"]
[Result "1-0"]
[Round "10"]
[TimeControl "180+2"]
[Date "2023.03.28"]
[WhiteClock "0:00:40"]
[BlackClock "0:01:32"]

1. Nf3 {[%clk 0:03:00]}  d5 {[%clk 0:02:58]} 2. h4 {[%clk 0:03:01]}  c6 {[%clk 0:02:57]} 3. h5 {[%clk 0:03:02]}  h6 {[%clk 0:02:57]} 4. d4 {[%clk 0:03:03]}  Bg4 {[%clk 0:02:57]} 5. c4 {[%clk 0:03:03]}  e6 {[%clk 0:02:56]} 6. Ne5 {[%clk 0:03:00]}  Bf5 {[%clk 0:02:56]} 7. Nc3 {[%clk 0:03:01]}  Nd7 {[%clk 0:02:55]} 8. Qb3 {[%clk 0:02:59]}  Nxe5 {[%clk 0:02:54]} 9. dxe5 {[%clk 0:02:59]}  Qb6 {[%clk 0:02:52]} 10. Be3 {[%clk 0:02:47]}  Qb4 {[%clk 0:02:43]} 11. Rh4 {[%clk 0:02:30]}  Be7 {[%clk 0:02:39]} 12. Qxb4 {[%clk 0:02:29]}  Bxb4 {[%clk 0:02:38]} 13. cxd5 {[%clk 0:02:30]}  Bxc3+ {[%clk 0:02:38]} 14. bxc3 {[%clk 0:02:31]}  exd5 {[%clk 0:02:38]} 15. a4 {[%clk 0:02:21]}  Ne7 {[%clk 0:02:37]} 16. Rb4 {[%clk 0:02:17]}  b6 {[%clk 0:02:34]} 17. g4 {[%clk 0:02:13]}  Be4 {[%clk 0:02:26]} 18. f3 {[%clk 0:02:11]}  Bh7 {[%clk 0:02:26]} 19. a5 {[%clk 0:02:10]}  b5 {[%clk 0:02:23]} 20. a6 {[%clk 0:02:10]}  Kd7 {[%clk 0:02:22]} 21. Bc5 {[%clk 0:02:05]}  Nc8 {[%clk 0:02:17]} 22. e4 {[%clk 0:02:01]}  dxe4 {[%clk 0:02:14]} 23. O-O-O+ {[%clk 0:02:01]}  Kc7 {[%clk 0:02:08]} 24. c4 {[%clk 0:01:05]}  Rd8 {[%clk 0:02:01]} 25. Rxd8 {[%clk 0:01:06]}  Kxd8 {[%clk 0:02:01]} 26. cxb5 {[%clk 0:01:07]}  cxb5 {[%clk 0:01:59]} 27. Rd4+ {[%clk 0:01:07]}  Kc7 {[%clk 0:01:56]} 28. Bxb5 {[%clk 0:01:06]}  Nb6 {[%clk 0:01:54]} 29. Bd6+ {[%clk 0:01:05]}  Kc8 {[%clk 0:01:54]} 30. f4 {[%clk 0:00:59]}  g6 {[%clk 0:01:50]} 31. hxg6 {[%clk 0:00:55]}  Bxg6 {[%clk 0:01:48]} 32. f5 {[%clk 0:00:54]}  Bh7 {[%clk 0:01:48]} 33. Bc6 {[%clk 0:00:44]}  h5 {[%clk 0:01:34]} 34. Bb7+ {[%clk 0:00:42]}  Kd8 {[%clk 0:01:32]} 35. Bc5+ {[%clk 0:00:41]}  Ke8 {[%clk 0:01:32]} 36. Bc6+ {[%clk 0:00:40]} 1-0


[Site "https://www.chess.com"]

[Event "Titled Tuesday Blitz March 28 Early 2023"]
[White "Cori T., Deysi"]
[Black "Hansen, Eric"]
[WhiteFideId "3801934"]
[BlackFideId "2606771"]
[WhiteElo "2292"]
[BlackElo "2569"]
[Result "0-1"]
[Round "10"]
[TimeControl "180+2"]
[Date "2023.03.28"]
[WhiteClock "0:00:07"]
[BlackClock "0:00:15"]

1. Nf3 {[%clk 0:03:00]}  d5 {[%clk 0:02:56]} 2. e3 {[%clk 0:02:59]}  Nf6 {[%clk 0:02:56]} 3. c4 {[%clk 0:02:59]}  c5 {[%clk 0:02:52]} 4. cxd5 {[%clk 0:02:58]}  Nxd5 {[%clk 0:02:53]} 5. Bb5+ {[%clk 0:02:59]}  Bd7 {[%clk 0:02:53]} 6. Qe2 {[%clk 0:02:58]}  a6 {[%clk 0:02:52]} 7. Bxd7+ {[%clk 0:02:57]}  Nxd7 {[%clk 0:02:52]} 8. d4 {[%clk 0:02:57]}  e6 {[%clk 0:02:52]} 9. O-O {[%clk 0:02:57]}  Be7 {[%clk 0:02:51]} 10. Rd1 {[%clk 0:02:57]}  cxd4 {[%clk 0:02:43]} 11. e4 {[%clk 0:02:57]}  N5f6 {[%clk 0:02:42]} 12. e5 {[%clk 0:02:54]}  Nd5 {[%clk 0:02:42]} 13. Nxd4 {[%clk 0:02:54]}  O-O {[%clk 0:02:36]} 14. Nd2 {[%clk 0:02:48]}  Qa5 {[%clk 0:01:54]} 15. N2f3 {[%clk 0:02:42]}  Rfd8 {[%clk 0:01:53]} 16. Bg5 {[%clk 0:02:31]}  Bxg5 {[%clk 0:01:48]} 17. Nxg5 {[%clk 0:02:30]}  h6 {[%clk 0:01:21]} 18. Ngf3 {[%clk 0:02:16]}  Rac8 {[%clk 0:01:18]} 19. g3 {[%clk 0:02:14]}  Qa4 {[%clk 0:01:08]} 20. h4 {[%clk 0:01:58]}  Nc5 {[%clk 0:01:02]} 21. Kg2 {[%clk 0:01:50]}  Ne7 {[%clk 0:00:57]} 22. h5 {[%clk 0:01:44]}  Rd5 {[%clk 0:00:56]} 23. b3 {[%clk 0:01:45]}  Qd7 {[%clk 0:00:53]} 24. Nc2 {[%clk 0:01:42]}  Rd8 {[%clk 0:00:44]} 25. Ne3 {[%clk 0:01:31]}  Rd3 {[%clk 0:00:41]} 26. b4 {[%clk 0:01:25]}  Ne4 {[%clk 0:00:35]} 27. Qc2 {[%clk 0:00:55]}  Nc6 {[%clk 0:00:33]} 28. a3 {[%clk 0:00:45]}  Nc3 {[%clk 0:00:23]} 29. Re1 {[%clk 0:00:19]}  Nb5 {[%clk 0:00:19]} 30. Red1 {[%clk 0:00:14]}  Nxa3 {[%clk 0:00:15]} 31. Rxd3 {[%clk 0:00:09]}  Qxd3 {[%clk 0:00:15]} 32. Qxd3 {[%clk 0:00:09]}  Rxd3 {[%clk 0:00:16]} 33. Ne1 {[%clk 0:00:07]}  Rb3 {[%clk 0:00:15]} 0-1


[Site "https://www.chess.com"]

[Event "Titled Tuesday Blitz March 28 Early 2023"]
[White "Aaditya Dhingra"]
[Black "Salinas Herrera, Pablo"]
[WhiteFideId "25678191"]
[BlackFideId "3407128"]
[WhiteElo "2083"]
[BlackElo "2550"]
[Result "1-0"]
[Round "10"]
[TimeControl "180+2"]
[Date "2023.03.28"]
[WhiteClock "0:00:58"]
[BlackClock "0:00:14"]

1. e4 {[%clk 0:03:00]}  c5 {[%clk 0:03:00]} 2. Nc3 {[%clk 0:02:57]}  a6 {[%clk 0:02:59]} 3. Nf3 {[%clk 0:02:52]}  e6 {[%clk 0:02:59]} 4. d4 {[%clk 0:02:49]}  cxd4 {[%clk 0:02:59]} 5. Nxd4 {[%clk 0:02:49]}  Qc7 {[%clk 0:03:00]} 6. a3 {[%clk 0:02:47]}  d6 {[%clk 0:03:00]} 7. f4 {[%clk 0:02:42]}  Nf6 {[%clk 0:03:00]} 8. Be2 {[%clk 0:02:42]}  b5 {[%clk 0:03:01]} 9. O-O {[%clk 0:02:42]}  Bb7 {[%clk 0:03:01]} 10. Bf3 {[%clk 0:02:42]}  Nbd7 {[%clk 0:03:01]} 11. Kh1 {[%clk 0:02:41]}  g6 {[%clk 0:03:00]} 12. e5 {[%clk 0:02:00]}  Nh5 {[%clk 0:02:55]} 13. exd6 {[%clk 0:01:54]}  Qb6 {[%clk 0:02:55]} 14. Be3 {[%clk 0:01:50]}  Bxf3 {[%clk 0:01:24]} 15. Qxf3 {[%clk 0:01:48]}  Qb8 {[%clk 0:01:25]} 16. f5 {[%clk 0:01:35]}  Ne5 {[%clk 0:01:21]} 17. d7+ {[%clk 0:01:28]}  Kxd7 {[%clk 0:01:11]} 18. fxe6+ {[%clk 0:01:27]}  fxe6 {[%clk 0:01:11]} 19. Qh3 {[%clk 0:01:26]}  Ng7 {[%clk 0:01:09]} 20. Rad1 {[%clk 0:01:20]}  Bd6 {[%clk 0:01:09]} 21. Ndxb5 {[%clk 0:01:08]}  axb5 {[%clk 0:01:09]} 22. Bc5 {[%clk 0:01:07]}  Rf8 {[%clk 0:00:18]} 23. Rxf8 {[%clk 0:01:05]}  Qxf8 {[%clk 0:00:19]} 24. Bxd6 {[%clk 0:01:02]}  Qxd6 {[%clk 0:00:19]} 25. Rxd6+ {[%clk 0:01:02]}  Kxd6 {[%clk 0:00:20]} 26. Nxb5+ {[%clk 0:01:00]}  Ke7 {[%clk 0:00:17]} 27. Qh4+ {[%clk 0:00:59]}  Kd7 {[%clk 0:00:14]} 28. Qd4+ {[%clk 0:00:58]} 1-0


[Site "https://www.chess.com"]

[Event "Titled Tuesday Blitz March 28 Early 2023"]
[White "Domingo Nunez, Alejandro"]
[Black "Warmerdam, Max"]
[WhiteFideId "22245561"]
[BlackFideId "1048104"]
[WhiteElo "2230"]
[BlackElo "2518"]
[Result "0-1"]
[Round "10"]
[TimeControl "180+2"]
[Date "2023.03.28"]
[WhiteClock "0:00:13"]
[BlackClock "0:00:27"]

1. e4 {[%clk 0:03:00]}  e5 {[%clk 0:02:59]} 2. Nf3 {[%clk 0:03:00]}  Nc6 {[%clk 0:03:00]} 3. Bc4 {[%clk 0:02:59]}  Nf6 {[%clk 0:03:01]} 4. d3 {[%clk 0:02:58]}  Bc5 {[%clk 0:03:01]} 5. c3 {[%clk 0:02:58]}  d6 {[%clk 0:03:02]} 6. O-O {[%clk 0:02:58]}  a5 {[%clk 0:03:02]} 7. Re1 {[%clk 0:02:56]}  O-O {[%clk 0:03:03]} 8. h3 {[%clk 0:02:56]}  Ba7 {[%clk 0:03:03]} 9. Nbd2 {[%clk 0:02:53]}  Be6 {[%clk 0:03:04]} 10. Bb5 {[%clk 0:02:53]}  Ne7 {[%clk 0:03:04]} 11. d4 {[%clk 0:02:52]}  Ng6 {[%clk 0:03:04]} 12. Nf1 {[%clk 0:02:51]}  exd4 {[%clk 0:03:01]} 13. cxd4 {[%clk 0:02:51]}  d5 {[%clk 0:03:02]} 14. e5 {[%clk 0:02:51]}  Ne4 {[%clk 0:03:02]} 15. Ng3 {[%clk 0:02:46]}  f5 {[%clk 0:03:02]} 16. exf6 {[%clk 0:02:44]}  Qxf6 {[%clk 0:03:03]} 17. Bd3 {[%clk 0:02:23]}  Nxf2 {[%clk 0:01:39]} 18. Kxf2 {[%clk 0:01:55]}  Nh4 {[%clk 0:01:39]} 19. Be2 {[%clk 0:00:47]}  Bxd4+ {[%clk 0:01:31]} 20. Kf1 {[%clk 0:00:47]}  Rae8 {[%clk 0:01:02]} 21. Qd3 {[%clk 0:00:40]}  Bb6 {[%clk 0:00:50]} 22. Bd1 {[%clk 0:00:28]}  Bxh3 {[%clk 0:00:30]} 23. gxh3 {[%clk 0:00:27]}  Nxf3 {[%clk 0:00:29]} 24. Rxe8 {[%clk 0:00:15]}  Nh2+ {[%clk 0:00:26]} 25. Kg2 {[%clk 0:00:14]}  Qf2+ {[%clk 0:00:26]} 26. Kh1 {[%clk 0:00:13]}  Qg1# {[%clk 0:00:27]} 0-1


[Site "https://www.chess.com"]

[Event "Titled Tuesday Blitz March 28 Early 2023"]
[White "Karthik, Venkataraman"]
[Black "Gontcharov, Vladislav"]
[WhiteFideId "25006479"]
[BlackFideId "4123492"]
[WhiteElo "2419"]
[BlackElo "2470"]
[Result "1-0"]
[Round "10"]
[TimeControl "180+2"]
[Date "2023.03.28"]
[WhiteClock "0:01:10"]
[BlackClock "0:00:01"]

1. f4 {[%clk 0:03:00]}  Nf6 {[%clk 0:02:55]} 2. Nf3 {[%clk 0:03:01]}  g6 {[%clk 0:02:55]} 3. g3 {[%clk 0:03:01]}  Bg7 {[%clk 0:02:55]} 4. Bg2 {[%clk 0:03:02]}  O-O {[%clk 0:02:55]} 5. O-O {[%clk 0:03:03]}  d6 {[%clk 0:02:54]} 6. d3 {[%clk 0:03:00]}  e5 {[%clk 0:02:54]} 7. e4 {[%clk 0:03:00]}  exf4 {[%clk 0:02:52]} 8. gxf4 {[%clk 0:02:59]}  c5 {[%clk 0:02:48]} 9. Nc3 {[%clk 0:02:58]}  Nc6 {[%clk 0:02:48]} 10. f5 {[%clk 0:02:47]}  Nd4 {[%clk 0:02:31]} 11. Nxd4 {[%clk 0:02:42]}  cxd4 {[%clk 0:02:30]} 12. Ne2 {[%clk 0:02:42]}  Nd7 {[%clk 0:02:31]} 13. Bf4 {[%clk 0:02:37]}  Qb6 {[%clk 0:02:26]} 14. Kh1 {[%clk 0:02:29]}  Ne5 {[%clk 0:02:15]} 15. c3 {[%clk 0:02:20]}  dxc3 {[%clk 0:01:51]} 16. bxc3 {[%clk 0:02:21]}  Bd7 {[%clk 0:01:46]} 17. Rb1 {[%clk 0:02:05]}  Qa6 {[%clk 0:01:46]} 18. d4 {[%clk 0:02:05]}  Nc4 {[%clk 0:01:43]} 19. Ng3 {[%clk 0:02:04]}  Bc6 {[%clk 0:01:26]} 20. Rf2 {[%clk 0:02:01]}  Rfe8 {[%clk 0:01:12]} 21. Qg4 {[%clk 0:02:00]}  b5 {[%clk 0:01:02]} 22. Rbf1 {[%clk 0:01:52]}  Qb7 {[%clk 0:00:44]} 23. Bc1 {[%clk 0:01:43]}  b4 {[%clk 0:00:42]} 24. f6 {[%clk 0:01:33]}  Bf8 {[%clk 0:00:42]} 25. Qh4 {[%clk 0:01:26]}  bxc3 {[%clk 0:00:31]} 26. Bh6 {[%clk 0:01:26]}  Kh8 {[%clk 0:00:31]} 27. Rf4 {[%clk 0:01:11]}  Ne3 {[%clk 0:00:14]} 28. Bxf8 {[%clk 0:01:10]}  Rxf8 {[%clk 0:00:14]} 29. Qh6 {[%clk 0:01:10]}  Nf5 {[%clk 0:00:01]} 30. Nxf5 {[%clk 0:01:10]} 1-0


[Site "https://www.chess.com"]

[Event "Titled Tuesday Blitz March 28 Early 2023"]
[White "Flores, Diego"]
[Black "Girya, Olga"]
[WhiteFideId "108049"]
[BlackFideId "4195752"]
[WhiteElo "2606"]
[BlackElo "2263"]
[Result "0-1"]
[Round "10"]
[TimeControl "180+2"]
[Date "2023.03.28"]
[WhiteClock "0:00:01"]
[BlackClock "0:00:04"]

1. c4 {[%clk 0:03:00]}  Nf6 {[%clk 0:02:58]} 2. Nc3 {[%clk 0:03:00]}  e5 {[%clk 0:02:58]} 3. Nf3 {[%clk 0:03:00]}  Nc6 {[%clk 0:02:58]} 4. e3 {[%clk 0:03:00]}  Bb4 {[%clk 0:02:57]} 5. Nd5 {[%clk 0:03:01]}  e4 {[%clk 0:02:15]} 6. Ng1 {[%clk 0:03:00]}  Bc5 {[%clk 0:02:06]} 7. a3 {[%clk 0:02:55]}  a5 {[%clk 0:02:05]} 8. Ne2 {[%clk 0:02:55]}  Nxd5 {[%clk 0:01:57]} 9. cxd5 {[%clk 0:02:56]}  Ne5 {[%clk 0:01:57]} 10. Nc3 {[%clk 0:02:14]}  f5 {[%clk 0:01:23]} 11. d4 {[%clk 0:02:11]}  exd3 {[%clk 0:01:22]} 12. Bxd3 {[%clk 0:02:04]}  Nxd3+ {[%clk 0:01:21]} 13. Qxd3 {[%clk 0:02:05]}  d6 {[%clk 0:01:20]} 14. O-O {[%clk 0:02:04]}  O-O {[%clk 0:01:20]} 15. Ne2 {[%clk 0:01:38]}  Qf6 {[%clk 0:01:16]} 16. Bd2 {[%clk 0:01:37]}  Bd7 {[%clk 0:01:04]} 17. Bc3 {[%clk 0:01:36]}  Qf7 {[%clk 0:01:04]} 18. Nf4 {[%clk 0:01:24]}  a4 {[%clk 0:01:03]} 19. h4 {[%clk 0:01:17]}  Rfe8 {[%clk 0:00:57]} 20. g3 {[%clk 0:01:15]}  Re4 {[%clk 0:00:53]} 21. Kg2 {[%clk 0:01:15]}  Rae8 {[%clk 0:00:52]} 22. Rh1 {[%clk 0:01:10]}  h6 {[%clk 0:00:50]} 23. h5 {[%clk 0:01:10]}  c6 {[%clk 0:00:46]} 24. Kf1 {[%clk 0:00:20]}  cxd5 {[%clk 0:00:44]} 25. Rd1 {[%clk 0:00:07]}  b5 {[%clk 0:00:27]} 26. Bd4 {[%clk 0:00:06]}  Bxd4 {[%clk 0:00:16]} 27. exd4 {[%clk 0:00:07]}  b4 {[%clk 0:00:14]} 28. Kg2 {[%clk 0:00:07]}  Rb8 {[%clk 0:00:12]} 29. Rc1 {[%clk 0:00:06]}  Qf6 {[%clk 0:00:11]} 30. Rhd1 {[%clk 0:00:03]}  Bb5 {[%clk 0:00:11]} 31. Qd2 {[%clk 0:00:02]}  Bc4 {[%clk 0:00:09]} 32. axb4 {[%clk 0:00:02]}  Qg5 {[%clk 0:00:07]} 33. Rc3 {[%clk 0:00:02]}  Rxb4 {[%clk 0:00:05]} 34. Rdc1 {[%clk 0:00:01]}  Rb8 {[%clk 0:00:05]} 35. R1c2 {[%clk 0:00:01]}  Rbe8 {[%clk 0:00:04]} 36. Rf3 {[%clk 0:00:01]}  Qg4 {[%clk 0:00:04]} 0-1


[Site "https://www.chess.com"]

[Event "Titled Tuesday Blitz March 28 Early 2023"]
[White "Jain Kashish Manoj"]
[Black "Iniyan, P"]
[WhiteFideId "35081098"]
[BlackFideId "25002767"]
[WhiteElo "2191"]
[BlackElo "2449"]
[Result "0-1"]
[Round "10"]
[TimeControl "180+2"]
[Date "2023.03.28"]
[WhiteClock "0:00:02"]
[BlackClock "0:02:18"]

1. Nf3 {[%clk 0:02:59]}  g6 {[%clk 0:03:00]} 2. d4 {[%clk 0:02:55]}  Bg7 {[%clk 0:03:01]} 3. c4 {[%clk 0:02:55]}  d6 {[%clk 0:03:02]} 4. Nc3 {[%clk 0:02:53]}  Nf6 {[%clk 0:03:03]} 5. e4 {[%clk 0:02:51]}  O-O {[%clk 0:03:04]} 6. Be2 {[%clk 0:02:46]}  e5 {[%clk 0:03:04]} 7. O-O {[%clk 0:02:45]}  Nc6 {[%clk 0:03:05]} 8. Be3 {[%clk 0:02:34]}  Ng4 {[%clk 0:03:04]} 9. Bg5 {[%clk 0:02:34]}  f6 {[%clk 0:03:04]} 10. Bc1 {[%clk 0:02:32]}  Nh6 {[%clk 0:03:03]} 11. dxe5 {[%clk 0:02:21]}  dxe5 {[%clk 0:02:59]} 12. c5 {[%clk 0:02:15]}  Be6 {[%clk 0:02:57]} 13. h3 {[%clk 0:02:01]}  Nf7 {[%clk 0:02:55]} 14. Qa4 {[%clk 0:01:49]}  Nd4 {[%clk 0:02:44]} 15. Be3 {[%clk 0:01:40]}  Nxe2+ {[%clk 0:02:40]} 16. Nxe2 {[%clk 0:01:41]}  c6 {[%clk 0:02:37]} 17. Rfd1 {[%clk 0:01:20]}  Qe7 {[%clk 0:02:37]} 18. b4 {[%clk 0:01:18]}  f5 {[%clk 0:02:36]} 19. Nc3 {[%clk 0:00:59]}  f4 {[%clk 0:02:36]} 20. Bc1 {[%clk 0:00:57]}  g5 {[%clk 0:02:37]} 21. Nh2 {[%clk 0:00:43]}  h5 {[%clk 0:02:37]} 22. Ba3 {[%clk 0:00:28]}  g4 {[%clk 0:02:35]} 23. hxg4 {[%clk 0:00:20]}  hxg4 {[%clk 0:02:36]} 24. b5 {[%clk 0:00:20]}  Rac8 {[%clk 0:02:29]} 25. bxc6 {[%clk 0:00:13]}  bxc6 {[%clk 0:02:30]} 26. Rd3 {[%clk 0:00:11]}  Qh4 {[%clk 0:02:25]} 27. g3 {[%clk 0:00:06]}  fxg3 {[%clk 0:02:24]} 28. Rxg3 {[%clk 0:00:06]}  Ng5 {[%clk 0:02:22]} 29. Qc2 {[%clk 0:00:02]}  Nh3+ {[%clk 0:02:20]} 30. Rxh3 {[%clk 0:00:02]}  Qxh3 {[%clk 0:02:20]} 31. Nf1 {[%clk 0:00:01]}  Rf3 {[%clk 0:02:20]} 32. Ng3 {[%clk 0:00:02]}  Rcf8 {[%clk 0:02:18]} 33. Nce2 {[%clk 0:00:02]}  Rxf2 {[%clk 0:02:18]} 0-1


[Site "https://www.chess.com"]

[Event "Titled Tuesday Blitz March 28 Early 2023"]
[White "Lewtak, Damian"]
[Black "Thecourseoisildur"]
[WhiteFideId "1141724"]
[WhiteElo "2302"]
[BlackElo "2478"]
[Result "1-0"]
[Round "10"]
[TimeControl "180+2"]
[Date "2023.03.28"]
[WhiteClock "0:00:55"]
[BlackClock "0:00:43"]

1. e4 {[%clk 0:03:00]}  c5 {[%clk 0:02:59]} 2. Nf3 {[%clk 0:03:00]}  e6 {[%clk 0:02:59]} 3. d4 {[%clk 0:03:00]}  cxd4 {[%clk 0:03:00]} 4. Nxd4 {[%clk 0:03:01]}  Nf6 {[%clk 0:03:01]} 5. Nc3 {[%clk 0:03:00]}  Nc6 {[%clk 0:03:01]} 6. Ndb5 {[%clk 0:02:54]}  Bc5 {[%clk 0:03:01]} 7. Bf4 {[%clk 0:02:53]}  O-O {[%clk 0:03:00]} 8. Bc7 {[%clk 0:02:54]}  Qe7 {[%clk 0:03:01]} 9. Bd6 {[%clk 0:02:54]}  Bxd6 {[%clk 0:03:01]} 10. Qxd6 {[%clk 0:02:54]}  Qd8 {[%clk 0:03:01]} 11. Bd3 {[%clk 0:02:42]}  a6 {[%clk 0:02:56]} 12. Nd4 {[%clk 0:02:33]}  Nxd4 {[%clk 0:02:50]} 13. Qxd4 {[%clk 0:02:34]}  d6 {[%clk 0:02:50]} 14. O-O-O {[%clk 0:02:24]}  Qc7 {[%clk 0:02:37]} 15. f4 {[%clk 0:02:17]}  e5 {[%clk 0:02:23]} 16. Qf2 {[%clk 0:02:15]}  Ng4 {[%clk 0:02:18]} 17. Qg3 {[%clk 0:02:13]}  exf4 {[%clk 0:02:15]} 18. Qxf4 {[%clk 0:02:10]}  Be6 {[%clk 0:02:13]} 19. Nd5 {[%clk 0:02:00]}  Bxd5 {[%clk 0:02:12]} 20. exd5 {[%clk 0:01:58]}  Ne5 {[%clk 0:02:11]} 21. Kb1 {[%clk 0:01:52]}  Rac8 {[%clk 0:02:03]} 22. c3 {[%clk 0:01:47]}  Rfe8 {[%clk 0:01:57]} 23. h4 {[%clk 0:01:40]}  Nxd3 {[%clk 0:01:50]} 24. Rxd3 {[%clk 0:01:41]}  Qc4 {[%clk 0:01:49]} 25. Qxc4 {[%clk 0:01:34]}  Rxc4 {[%clk 0:01:50]} 26. g3 {[%clk 0:01:34]}  Re2 {[%clk 0:01:47]} 27. Rc1 {[%clk 0:01:26]}  f6 {[%clk 0:01:44]} 28. b3 {[%clk 0:01:22]}  Rce4 {[%clk 0:01:38]} 29. c4 {[%clk 0:01:18]}  b6 {[%clk 0:01:38]} 30. Rc2 {[%clk 0:01:10]}  a5 {[%clk 0:01:30]} 31. a3 {[%clk 0:01:06]}  Kf7 {[%clk 0:01:29]} 32. Kb2 {[%clk 0:01:00]}  f5 {[%clk 0:01:25]} 33. Rxe2 {[%clk 0:00:56]}  Rxe2+ {[%clk 0:01:24]} 34. Kc3 {[%clk 0:00:56]}  Ra2 {[%clk 0:01:24]} 35. Re3 {[%clk 0:00:57]}  Rxa3 {[%clk 0:01:07]} 36. Kb2 {[%clk 0:00:55]}  f4 {[%clk 0:00:41]} 37. gxf4 {[%clk 0:00:53]}  Rxb3+ {[%clk 0:00:41]} 38. Rxb3 {[%clk 0:00:53]}  Kf6 {[%clk 0:00:42]} 39. Rxb6 {[%clk 0:00:53]}  Kf5 {[%clk 0:00:42]} 40. Rxd6 {[%clk 0:00:54]}  Kxf4 {[%clk 0:00:43]} 41. Rd7 {[%clk 0:00:54]}  Ke5 {[%clk 0:00:43]} 42. Rxg7 {[%clk 0:00:54]}  Kd4 {[%clk 0:00:43]} 43. Rxh7 {[%clk 0:00:55]}  Kxc4 {[%clk 0:00:44]} 44. d6 {[%clk 0:00:56]}  a4 {[%clk 0:00:44]} 45. d7 {[%clk 0:00:56]}  a3+ {[%clk 0:00:43]} 46. Kxa3 {[%clk 0:00:55]} 1-0


[Site "https://www.chess.com"]

[Event "Titled Tuesday Blitz March 28 Early 2023"]
[White "Jessel, Stephen"]
[Black "Maxfan2008"]
[WhiteFideId "628859"]
[WhiteElo "2268"]
[BlackElo "2443"]
[Result "0-1"]
[Round "10"]
[TimeControl "180+2"]
[Date "2023.03.28"]
[WhiteClock "0:00:25"]
[BlackClock "0:00:19"]

1. Nf3 {[%clk 0:03:00]}  d5 {[%clk 0:02:59]} 2. c4 {[%clk 0:03:00]}  c6 {[%clk 0:02:59]} 3. g3 {[%clk 0:02:59]}  Nf6 {[%clk 0:02:58]} 4. Bg2 {[%clk 0:03:00]}  Bg4 {[%clk 0:02:59]} 5. Ne5 {[%clk 0:03:00]}  Bf5 {[%clk 0:02:59]} 6. cxd5 {[%clk 0:02:59]}  cxd5 {[%clk 0:02:58]} 7. Nc3 {[%clk 0:02:56]}  Nc6 {[%clk 0:02:58]} 8. Nxc6 {[%clk 0:02:50]}  bxc6 {[%clk 0:02:58]} 9. d3 {[%clk 0:02:48]}  e5 {[%clk 0:02:55]} 10. O-O {[%clk 0:02:48]}  Bd6 {[%clk 0:02:52]} 11. e4 {[%clk 0:02:47]}  Bg4 {[%clk 0:02:52]} 12. Qa4 {[%clk 0:02:47]}  Bd7 {[%clk 0:02:40]} 13. Qa6 {[%clk 0:02:45]}  d4 {[%clk 0:02:39]} 14. Na4 {[%clk 0:02:32]}  Rb8 {[%clk 0:02:35]} 15. b3 {[%clk 0:02:26]}  O-O {[%clk 0:02:34]} 16. Bd2 {[%clk 0:02:22]}  Qe7 {[%clk 0:02:29]} 17. Rfc1 {[%clk 0:02:21]}  c5 {[%clk 0:02:24]} 18. Rc2 {[%clk 0:02:06]}  Bb5 {[%clk 0:02:22]} 19. Qa5 {[%clk 0:01:59]}  Bxd3 {[%clk 0:02:14]} 20. Rxc5 {[%clk 0:01:59]}  Bxc5 {[%clk 0:02:11]} 21. Qxc5 {[%clk 0:01:59]}  Rfe8 {[%clk 0:02:02]} 22. Re1 {[%clk 0:01:46]}  Rbc8 {[%clk 0:01:56]} 23. Qa5 {[%clk 0:01:45]}  Rc2 {[%clk 0:01:39]} 24. Bb4 {[%clk 0:01:45]}  Qd8 {[%clk 0:01:07]} 25. Qxa7 {[%clk 0:01:30]}  Rxa2 {[%clk 0:01:01]} 26. Qb7 {[%clk 0:01:20]}  Qb8 {[%clk 0:00:54]} 27. Nc5 {[%clk 0:01:09]}  Qxb7 {[%clk 0:00:53]} 28. Nxb7 {[%clk 0:01:09]}  Rb8 {[%clk 0:00:53]} 29. Nc5 {[%clk 0:01:10]}  Rxb4 {[%clk 0:00:43]} 30. Nxd3 {[%clk 0:01:10]}  Rb5 {[%clk 0:00:38]} 31. Rb1 {[%clk 0:01:07]}  Rd2 {[%clk 0:00:35]} 32. Ne1 {[%clk 0:01:00]}  Rb4 {[%clk 0:00:32]} 33. f3 {[%clk 0:00:59]}  Nd7 {[%clk 0:00:29]} 34. Bf1 {[%clk 0:00:59]}  Nc5 {[%clk 0:00:27]} 35. Bc4 {[%clk 0:00:59]}  d3 {[%clk 0:00:22]} 36. Ra1 {[%clk 0:00:39]}  g6 {[%clk 0:00:22]} 37. Kf1 {[%clk 0:00:32]}  Rxh2 {[%clk 0:00:20]} 38. Ra8+ {[%clk 0:00:30]}  Kg7 {[%clk 0:00:20]} 39. Nxd3 {[%clk 0:00:31]}  Nxd3 {[%clk 0:00:20]} 40. Bxd3 {[%clk 0:00:31]}  Rxb3 {[%clk 0:00:20]} 41. Rd8 {[%clk 0:00:28]}  Rd2 {[%clk 0:00:19]} 42. Bc4 {[%clk 0:00:25]}  Rb1# {[%clk 0:00:19]} 0-1


[Site "https://www.chess.com"]